[Event "Vastgota Open 2023"]
[Site "Skara stadshotell, Jarnvagsgatan 5, Skara, Sweden"]
[Date "2023.02.18"]
[Round "5.7"]
[White "Kockum, Anton Frisk"]
[Black "Bjorklund, Thomas"]
[Result "1-0"]
[TimeControl "15 minutes + 5 seconds per move from move one (Round 1 - 2) / 30 minutes + 10 seconds per move from move one (Round 3 - 9)"]
[WhiteTitle "FM"]
[WhiteFideId "1709143"]
[BlackFideId "1724576"]
[WhiteElo "2367"]
[BlackElo "2108"]

1. d4 {[%clk 00:29:35]} {[%emt 00:00:45]} d5 {[%clk 00:30:16]} {[%emt
00:00:05]} 2. Nf3 {[%clk 00:29:41]} {[%emt 00:00:04]} Nf6 {[%clk 00:30:20]}
{[%emt 00:00:06]} 3. c4 {[%clk 00:29:50]} {[%emt 00:00:01]} e6 {[%clk
00:30:26]} {[%emt 00:00:04]} 4. Nc3 {[%clk 00:29:58]} {[%emt 00:00:02]} Be7
{[%clk 00:30:33]} {[%emt 00:00:03]} 5. Bg5 {[%clk 00:30:06]} {[%emt 00:00:02]}
O-O {[%clk 00:30:07]} {[%emt 00:00:36]} 6. e3 {[%clk 00:30:14]} {[%emt
00:00:02]} b6 {[%clk 00:29:57]} {[%emt 00:00:20]} 7. Rc1 {[%clk 00:29:37]}
{[%emt 00:00:47]} Bb7 {[%clk 00:30:00]} {[%emt 00:00:06]} 8. cxd5 {[%clk
00:28:57]} {[%emt 00:00:51]} Nxd5 {[%clk 00:29:52]} {[%emt 00:00:18]} 9. Nxd5
{[%clk 00:28:35]} {[%emt 00:00:32]} Bxd5 {[%clk 00:29:43]} {[%emt 00:00:18]} 10.
Bxe7 {[%clk 00:28:07]} {[%emt 00:00:38]} Qxe7 {[%clk 00:29:47]} {[%emt
00:00:07]} 11. Qa4 {[%clk 00:24:04]} {[%emt 00:04:13]} a5 {[%clk 00:27:49]}
{[%emt 00:02:07]} 12. a3 {[%clk 00:22:11]} {[%emt 00:02:05]} Rc8 {[%clk
00:27:01]} {[%emt 00:00:57]} 13. Be2 {[%clk 00:17:35]} {[%emt 00:04:46]} Nd7
{[%clk 00:26:52]} {[%emt 00:00:19]} 14. O-O {[%clk 00:17:08]} {[%emt 00:00:37]}
c5 {[%clk 00:26:24]} {[%emt 00:00:37]} 15. Rfd1 {[%clk 00:13:37]} {[%emt
00:03:41]} Rab8 {[%clk 00:25:07]} {[%emt 00:01:28]} 16. Bb5 {[%clk 00:11:55]}
{[%emt 00:01:52]} Bxf3 {[%clk 00:24:30]} {[%emt 00:00:47]} 17. gxf3 {[%clk
00:11:56]} {[%emt 00:00:09]} Nf6 {[%clk 00:24:27]} {[%emt 00:00:13]} 18. Bf1
{[%clk 00:09:13]} {[%emt 00:02:53]} h6 {[%clk 00:24:15]} {[%emt 00:00:23]} 19.
f4 {[%clk 00:08:47]} {[%emt 00:00:35]} Ng4 {[%clk 00:22:54]} {[%emt 00:01:30]}
20. h3 {[%clk 00:08:24]} {[%emt 00:00:33]} Nf6 {[%clk 00:23:00]} {[%emt
00:00:05]} 21. Bg2 {[%clk 00:08:21]} {[%emt 00:00:13]} cxd4 {[%clk 00:22:12]}
{[%emt 00:00:58]} 22. Rxc8+ {[%clk 00:08:22]} {[%emt 00:00:09]} Rxc8 {[%clk
00:22:18]} {[%emt 00:00:04]} 23. Qxd4 {[%clk 00:08:29]} {[%emt 00:00:03]} b5
{[%clk 00:21:58]} {[%emt 00:00:29]} 24. Qb6 {[%clk 00:07:11]} {[%emt 00:01:29]}
Qc7 {[%clk 00:20:08]} {[%emt 00:02:00]} 25. Qxb5 {[%clk 00:06:51]} {[%emt
00:00:30]} Rb8 {[%clk 00:20:10]} {[%emt 00:00:08]} 26. Qe2 {[%clk 00:06:45]}
{[%emt 00:00:15]} Rb3 {[%clk 00:19:42]} {[%emt 00:00:38]} 27. Bf3 {[%clk
00:05:10]} {[%emt 00:01:46]} Nd7 {[%clk 00:18:58]} {[%emt 00:00:54]} 28. Kg2
{[%clk 00:04:50]} {[%emt 00:00:30]} g6 {[%clk 00:18:54]} {[%emt 00:00:14]} 29.
Qd2 {[%clk 00:04:01]} {[%emt 00:00:58]} Nc5 {[%clk 00:18:40]} {[%emt 00:00:24]}
30. Rc1 {[%clk 00:04:03]} {[%emt 00:00:08]} Qb6 {[%clk 00:18:39]} {[%emt
00:00:11]} 31. Qd4 {[%clk 00:03:57]} {[%emt 00:00:16]} Na6 {[%clk 00:17:52]}
{[%emt 00:00:58]} 32. Rc8+ {[%clk 00:04:03]} {[%emt 00:00:04]} 1-0

[Event "Vastgota Open 2023"]
[Site "Skara stadshotell, Jarnvagsgatan 5, Skara, Sweden"]
[Date "2023.02.18"]
[Round "5.8"]
[White "Lindgren, Philip"]
[Black "Wengholm, Anders"]
[Result "1/2-1/2"]
[TimeControl "15 minutes + 5 seconds per move from move one (Round 1 - 2) / 30 minutes + 10 seconds per move from move one (Round 3 - 9)"]
[WhiteTitle "IM"]
[WhiteFideId "1713230"]
[BlackFideId "1704818"]
[WhiteElo "2282"]
[BlackElo "2104"]

1. d4 {[%clk 00:27:18]} {[%emt 00:03:01]} e6 {[%clk 00:29:03]} {[%emt
00:01:18]} 2. c4 {[%clk 00:27:11]} {[%emt 00:00:17]} f5 {[%clk 00:28:58]}
{[%emt 00:00:14]} 3. g3 {[%clk 00:26:01]} {[%emt 00:01:20]} Nf6 {[%clk
00:29:00]} {[%emt 00:00:08]} 4. Bg2 {[%clk 00:26:05]} {[%emt 00:00:06]} d5
{[%clk 00:27:19]} {[%emt 00:01:51]} 5. Nd2 {[%clk 00:23:31]} {[%emt 00:02:44]}
c6 {[%clk 00:25:56]} {[%emt 00:01:34]} 6. Qc2 {[%clk 00:21:33]} {[%emt
00:02:08]} Bd6 {[%clk 00:25:59]} {[%emt 00:00:07]} 7. Nh3 {[%clk 00:21:30]}
{[%emt 00:00:12]} O-O {[%clk 00:25:32]} {[%emt 00:00:37]} 8. O-O {[%clk
00:21:30]} {[%emt 00:00:09]} Qe7 {[%clk 00:25:07]} {[%emt 00:00:36]} 9. Nf3
{[%clk 00:21:23]} {[%emt 00:00:16]} Ne4 {[%clk 00:23:28]} {[%emt 00:01:49]} 10.
Nf4 {[%clk 00:21:23]} {[%emt 00:00:11]} b6 {[%clk 00:23:20]} {[%emt 00:00:18]}
11. Nd3 {[%clk 00:20:55]} {[%emt 00:00:38]} Bb7 {[%clk 00:22:51]} {[%emt
00:00:39]} 12. Rb1 {[%clk 00:20:31]} {[%emt 00:00:33]} a5 {[%clk 00:20:15]}
{[%emt 00:02:47]} 13. Bf4 {[%clk 00:19:34]} {[%emt 00:01:06]} Bxf4 {[%clk
00:17:16]} {[%emt 00:03:11]} 14. Nxf4 {[%clk 00:19:12]} {[%emt 00:00:31]} Nd7
{[%clk 00:16:37]} {[%emt 00:00:49]} 15. b3 {[%clk 00:16:04]} {[%emt 00:03:18]}
Rac8 {[%clk 00:14:55]} {[%emt 00:01:53]} 16. Qb2 {[%clk 00:14:46]} {[%emt
00:01:27]} Ba6 {[%clk 00:13:13]} {[%emt 00:01:52]} 17. Rbc1 {[%clk 00:14:21]}
{[%emt 00:00:35]} b5 {[%clk 00:08:27]} {[%emt 00:04:57]} 18. c5 {[%clk
00:10:08]} {[%emt 00:04:22]} e5 {[%clk 00:08:21]} {[%emt 00:00:16]} 19. Nxe5
{[%clk 00:07:31]} {[%emt 00:02:47]} Nxe5 {[%clk 00:08:30]} {[%emt 00:00:02]} 20.
dxe5 {[%clk 00:07:39]} {[%emt 00:00:02]} Rfe8 {[%clk 00:04:27]} {[%emt
00:04:12]} 21. Nd3 {[%clk 00:07:08]} {[%emt 00:00:41]} b4 {[%clk 00:04:24]}
{[%emt 00:00:14]} 22. Qc2 {[%clk 00:04:20]} {[%emt 00:02:57]} Nc3 {[%clk
00:03:00]} {[%emt 00:01:34]} 23. a3 {[%clk 00:01:05]} {[%emt 00:03:26]} Bxd3
{[%clk 00:02:55]} {[%emt 00:00:15]} 24. Qxd3 {[%clk 00:01:09]} {[%emt
00:00:04]} Qxe5 {[%clk 00:03:04]} {[%emt 00:00:02]} 25. e3 {[%clk 00:01:18]}
Ra8 {[%clk 00:02:42]} {[%emt 00:00:32]} 26. a4 {[%clk 00:00:14]} {[%emt
00:01:14]} Ra7 {[%clk 00:02:31]} {[%emt 00:00:22]} 27. Rc2 {[%clk 00:00:16]}
{[%emt 00:00:07]} g6 {[%clk 00:02:32]} {[%emt 00:00:10]} 28. Rfc1 {[%clk
00:00:22]} {[%emt 00:00:03]} Rd8 {[%clk 00:02:15]} {[%emt 00:00:27]} 29. Bf3
{[%clk 00:00:27]} {[%emt 00:00:05]} Qf6 {[%clk 00:02:07]} {[%emt 00:00:19]} 30.
Rd2 {[%clk 00:00:31]} {[%emt 00:00:05]} Kf7 {[%clk 00:01:52]} {[%emt 00:00:26]}
31. h4 {[%clk 00:00:36]} {[%emt 00:00:04]} 1/2-1/2

[Event "Vastgota Open 2023"]
[Site "Skara stadshotell, Jarnvagsgatan 5, Skara, Sweden"]
[Date "2023.02.18"]
[Round "5.9"]
[White "Madebrink, Lars"]
[Black "Silseth, Simon"]
[Result "0-1"]
[TimeControl "15 minutes + 5 seconds per move from move one (Round 1 - 2) / 30 minutes + 10 seconds per move from move one (Round 3 - 9)"]
[BlackTitle "FM"]
[WhiteFideId "1701347"]
[BlackFideId "1702440"]
[WhiteElo "2112"]
[BlackElo "2258"]

1. e4 {[%clk 00:30:17]} {[%emt 00:00:02]} c6 {[%clk 00:30:16]} {[%emt
00:00:04]} 2. d4 {[%clk 00:30:24]} {[%emt 00:00:03]} d5 {[%clk 00:30:24]}
{[%emt 00:00:02]} 3. Nc3 {[%clk 00:30:33]} dxe4 {[%clk 00:30:29]} {[%emt
00:00:06]} 4. Nxe4 {[%clk 00:30:41]} {[%emt 00:00:02]} Bf5 {[%clk 00:30:33]}
{[%emt 00:00:06]} 5. Ng3 {[%clk 00:30:41]} {[%emt 00:00:10]} Bg6 {[%clk
00:30:40]} {[%emt 00:00:03]} 6. h4 {[%clk 00:30:42]} {[%emt 00:00:08]} h6
{[%clk 00:30:48]} {[%emt 00:00:03]} 7. Bc4 {[%clk 00:30:39]} {[%emt 00:00:13]}
e6 {[%clk 00:30:45]} {[%emt 00:00:13]} 8. N1e2 {[%clk 00:30:37]} {[%emt
00:00:12]} Bd6 {[%clk 00:30:45]} {[%emt 00:00:10]} 9. Nf4 {[%clk 00:30:36]}
{[%emt 00:00:11]} Bxf4 {[%clk 00:29:37]} {[%emt 00:01:18]} 10. Bxf4 {[%clk
00:30:43]} {[%emt 00:00:03]} Nf6 {[%clk 00:29:22]} {[%emt 00:00:25]} 11. Qd2
{[%clk 00:29:57]} {[%emt 00:00:56]} Nbd7 {[%clk 00:27:50]} {[%emt 00:01:42]} 12.
O-O-O {[%clk 00:29:52]} {[%emt 00:00:14]} Nd5 {[%clk 00:24:07]} {[%emt
00:03:54]} 13. h5 {[%clk 00:27:35]} {[%emt 00:02:27]} Bh7 {[%clk 00:24:02]}
{[%emt 00:00:14]} 14. Ne2 {[%clk 00:22:45]} {[%emt 00:05:00]} Nxf4 {[%clk
00:23:19]} {[%emt 00:00:54]} 15. Nxf4 {[%clk 00:22:51]} {[%emt 00:00:04]} Qf6
{[%clk 00:20:50]} {[%emt 00:02:38]} 16. Rhe1 {[%clk 00:22:20]} {[%emt
00:00:41]} O-O-O {[%clk 00:20:33]} {[%emt 00:00:27]} 17. g3 {[%clk 00:22:02]}
{[%emt 00:00:29]} Rhe8 {[%clk 00:20:20]} {[%emt 00:00:23]} 18. Qa5 {[%clk
00:17:25]} {[%emt 00:04:47]} Nb6 {[%clk 00:16:45]} {[%emt 00:03:44]} 19. Bf1
{[%clk 00:15:07]} {[%emt 00:02:28]} Rxd4 {[%clk 00:15:25]} {[%emt 00:01:32]} 20.
Qxa7 {[%clk 00:13:02]} {[%emt 00:02:14]} Kc7 {[%clk 00:14:03]} {[%emt
00:01:32]} 21. Qa3 {[%clk 00:11:09]} {[%emt 00:02:03]} Red8 {[%clk 00:11:06]}
{[%emt 00:03:07]} 22. Bd3 {[%clk 00:08:00]} {[%emt 00:03:19]} Bxd3 {[%clk
00:10:13]} {[%emt 00:01:03]} 23. Rxd3 {[%clk 00:07:41]} {[%emt 00:00:29]} Rxd3
{[%clk 00:09:39]} {[%emt 00:00:45]} 24. Nxd3 {[%clk 00:07:48]} {[%emt
00:00:02]} Qg5+ {[%clk 00:09:06]} {[%emt 00:00:42]} 25. Kb1 {[%clk 00:06:44]}
{[%emt 00:01:14]} Qxh5 {[%clk 00:08:20]} {[%emt 00:00:57]} 26. b3 {[%clk
00:06:43]} {[%emt 00:00:11]} Qf3 {[%clk 00:06:43]} {[%emt 00:01:46]} 27. Qc5
{[%clk 00:06:29]} {[%emt 00:00:24]} Qd5 {[%clk 00:06:24]} {[%emt 00:00:29]} 28.
Qc3 {[%clk 00:06:23]} {[%emt 00:00:17]} Qd4 {[%clk 00:06:10]} {[%emt 00:00:24]}
29. Qa5 {[%clk 00:05:42]} {[%emt 00:00:50]} Rd5 {[%clk 00:04:45]} {[%emt
00:01:35]} 30. Qa3 {[%clk 00:05:50]} {[%emt 00:00:03]} Qc3 {[%clk 00:04:35]}
{[%emt 00:00:20]} 31. Re3 {[%clk 00:05:21]} {[%emt 00:00:38]} Rd6 {[%clk
00:02:57]} {[%emt 00:01:49]} 32. Qa7 {[%clk 00:04:42]} {[%emt 00:00:50]} Nd5
{[%clk 00:02:38]} {[%emt 00:00:28]} 33. Nc5 {[%clk 00:04:03]} {[%emt 00:00:49]}
Nxe3 {[%clk 00:02:06]} {[%emt 00:00:42]} 34. Qxb7+ {[%clk 00:04:06]} {[%emt
00:00:08]} Kd8 {[%clk 00:02:14]} {[%emt 00:00:01]} 35. Qb8+ {[%clk 00:03:03]}
{[%emt 00:01:12]} Ke7 {[%clk 00:02:23]} {[%emt 00:00:02]} 36. Qc7+ {[%clk
00:03:07]} {[%emt 00:00:06]} Ke8 {[%clk 00:02:28]} {[%emt 00:00:05]} 37. Qxd6
{[%clk 00:03:02]} {[%emt 00:00:14]} Qxc2+ {[%clk 00:02:35]} {[%emt 00:00:04]}
38. Ka1 {[%clk 00:03:11]} {[%emt 00:00:01]} Qc1# {[%emt 00:00:02]} 0-1

[Event "Vastgota Open 2023"]
[Site "Skara stadshotell, Jarnvagsgatan 5, Skara, Sweden"]
[Date "2023.02.18"]
[Round "5.10"]
[White "Jamtbo, Patrik"]
[Black "Trost, Edvin"]
[Result "0-1"]
[TimeControl "15 minutes + 5 seconds per move from move one (Round 1 - 2) / 30 minutes + 10 seconds per move from move one (Round 3 - 9)"]
[BlackTitle "FM"]
[WhiteFideId "1718339"]
[BlackFideId "1729519"]
[WhiteElo "1670"]
[BlackElo "2226"]

1. Nf3 {[%clk 00:30:10]} {[%emt 00:13:27]} Nf6 {[%clk 00:27:39]} {[%emt
00:02:48]} 2. g3 {[%clk 00:30:13]} {[%emt 00:00:07]} g6 {[%clk 00:27:39]}
{[%emt 00:00:05]} 3. Bg2 {[%clk 00:30:21]} {[%emt 00:00:07]} Bg7 {[%clk
00:27:48]} 4. c4 {[%clk 00:30:19]} {[%emt 00:00:13]} O-O {[%clk 00:27:51]}
{[%emt 00:00:06]} 5. Nc3 {[%clk 00:30:26]} {[%emt 00:00:04]} d6 {[%clk
00:27:43]} {[%emt 00:00:18]} 6. d4 {[%clk 00:30:17]} {[%emt 00:00:19]} Nc6
{[%clk 00:27:04]} {[%emt 00:00:49]} 7. e4 {[%clk 00:29:27]} {[%emt 00:00:59]}
Bg4 {[%clk 00:26:39]} {[%emt 00:00:35]} 8. Be3 {[%clk 00:29:11]} {[%emt
00:00:25]} e5 {[%clk 00:25:18]} {[%emt 00:01:32]} 9. d5 {[%clk 00:26:58]}
{[%emt 00:02:23]} Nd4 {[%clk 00:25:27]} {[%emt 00:00:02]} 10. h3 {[%clk
00:24:43]} {[%emt 00:02:24]} Bxf3 {[%clk 00:24:02]} {[%emt 00:01:36]} 11. Bxf3
{[%clk 00:24:50]} {[%emt 00:00:03]} Nd7 {[%clk 00:23:22]} {[%emt 00:00:50]} 12.
Bg2 {[%clk 00:24:24]} {[%emt 00:00:35]} c5 {[%clk 00:23:07]} {[%emt 00:00:25]}
13. dxc6 {[%clk 00:21:01]} {[%emt 00:03:34]} bxc6 {[%clk 00:23:11]} {[%emt
00:00:06]} 14. O-O {[%clk 00:20:58]} {[%emt 00:00:13]} Qa5 {[%clk 00:21:20]}
{[%emt 00:02:01]} 15. a3 {[%clk 00:19:25]} {[%emt 00:01:43]} Qa6 {[%clk
00:20:31]} {[%emt 00:00:57]} 16. Rc1 {[%clk 00:17:29]} {[%emt 00:02:08]} Qxc4
{[%clk 00:19:41]} {[%emt 00:01:00]} 17. Bxd4 {[%clk 00:16:01]} {[%emt
00:01:38]} Qxd4 {[%clk 00:19:46]} {[%emt 00:00:06]} 18. Ne2 {[%clk 00:13:30]}
{[%emt 00:02:40]} Qxb2 {[%clk 00:18:54]} {[%emt 00:01:02]} 19. Rxc6 {[%clk
00:13:13]} {[%emt 00:00:27]} Qxa3 {[%clk 00:17:03]} {[%emt 00:02:01]} 20. Qxd6
{[%clk 00:12:30]} {[%emt 00:00:52]} Qxd6 {[%clk 00:16:59]} {[%emt 00:00:15]} 21.
Rxd6 {[%clk 00:12:39]} {[%emt 00:00:01]} Nc5 {[%clk 00:17:08]} 22. Rb1 {[%clk
00:12:19]} {[%emt 00:00:29]} Rfb8 {[%clk 00:14:49]} {[%emt 00:02:32]} 23. Ra1
{[%clk 00:11:30]} {[%emt 00:00:57]} a5 {[%clk 00:13:16]} {[%emt 00:01:42]} 24.
Nc3 {[%clk 00:11:22]} {[%emt 00:00:18]} a4 {[%clk 00:10:24]} {[%emt 00:03:03]}
25. Rd5 {[%clk 00:10:52]} {[%emt 00:00:40]} Bf8 {[%emt 00:01:32]} 26. Rxe5
{[%clk 00:09:55]} a3 {[%clk 00:10:00]} {[%emt 00:00:19]} 27. Rd5 {[%clk
00:09:37]} {[%emt 00:00:27]} Rb3 {[%clk 00:06:32]} {[%emt 00:03:39]} 28. Ne2
{[%clk 00:08:09]} {[%emt 00:01:38]} Rb2 {[%clk 00:04:14]} {[%emt 00:02:28]} 29.
Nc3 {[%clk 00:07:04]} {[%emt 00:01:15]} Nb3 {[%clk 00:04:16]} {[%emt 00:00:08]}
30. Ra2 {[%clk 00:06:44]} {[%emt 00:00:30]} Rc8 {[%clk 00:04:24]} {[%emt
00:00:02]} 31. Rd3 {[%clk 00:04:52]} {[%emt 00:02:02]} Nc1 {[%clk 00:04:29]}
{[%emt 00:00:05]} 32. Rxa3 {[%clk 00:02:51]} {[%emt 00:02:11]} Bxa3 {[%clk
00:04:33]} {[%emt 00:00:06]} 33. Re3 {[%clk 00:02:00]} {[%emt 00:01:01]} Rxc3
{[%clk 00:04:42]} {[%emt 00:00:02]} 34. Rxc3 {[%clk 00:02:07]} {[%emt
00:00:02]} Ne2+ {[%clk 00:04:50]} {[%emt 00:00:02]} 35. Kh2 {[%clk 00:02:00]}
{[%emt 00:00:16]} Nxc3 {[%clk 00:04:59]} {[%emt 00:00:02]} 36. e5 {[%clk
00:01:54]} {[%emt 00:00:16]} Rxf2 {[%clk 00:05:07]} {[%emt 00:00:02]} 37. Kg1
{[%clk 00:01:57]} {[%emt 00:00:07]} Bc5 {[%clk 00:05:15]} {[%emt 00:00:01]} 38.
Kh2 {[%clk 00:02:03]} {[%emt 00:00:04]} Nd1 {[%clk 00:05:22]} {[%emt 00:00:04]}
39. g4 {[%clk 00:02:03]} {[%emt 00:00:10]} Ne3 {[%clk 00:05:30]} {[%emt
00:00:02]} 40. Kg3 {[%clk 00:02:11]} {[%emt 00:00:01]} Rxg2+ {[%clk 00:05:37]}
{[%emt 00:00:03]} 41. Kf3 {[%clk 00:02:16]} {[%emt 00:00:06]} f6 {[%clk
00:05:43]} {[%emt 00:00:04]} 42. exf6 {[%clk 00:02:12]} {[%emt 00:00:14]} Kf7
{[%clk 00:05:52]} {[%emt 00:00:01]} 43. g5 {[%clk 00:02:20]} {[%emt 00:00:02]}
Rxg5 {[%clk 00:06:00]} {[%emt 00:00:02]} 44. h4 {[%clk 00:02:25]} {[%emt
00:00:06]} Rf5+ {[%clk 00:06:09]} 45. Ke4 {[%clk 00:02:32]} {[%emt 00:00:02]}
Kxf6 {[%clk 00:06:17]} {[%emt 00:00:02]} 0-1

[Event "Vastgota Open 2023"]
[Site "Skara stadshotell, Jarnvagsgatan 5, Skara, Sweden"]
[Date "2023.02.18"]
[Round "5.11"]
[White "Ronneland, Daniel"]
[Black "Ask, Josef"]
[Result "1-0"]
[TimeControl "15 minutes + 5 seconds per move from move one (Round 1 - 2) / 30 minutes + 10 seconds per move from move one (Round 3 - 9)"]
[BlackTitle "FM"]
[WhiteFideId "1702130"]
[BlackFideId "1704583"]
[WhiteElo "2188"]
[BlackElo "2102"]

1. e4 {[%clk 00:30:04]} {[%emt 00:00:15]} e5 {[%clk 00:30:06]} {[%emt
00:00:14]} 2. Nf3 {[%clk 00:30:05]} {[%emt 00:00:10]} Nc6 {[%clk 00:30:04]}
{[%emt 00:00:11]} 3. Bb5 {[%clk 00:30:12]} {[%emt 00:00:04]} Nge7 {[%clk
00:29:58]} {[%emt 00:00:16]} 4. c3 {[%clk 00:29:52]} {[%emt 00:00:29]} d5
{[%clk 00:29:41]} {[%emt 00:00:28]} 5. Nxe5 {[%clk 00:26:40]} {[%emt 00:03:22]}
dxe4 {[%clk 00:29:46]} {[%emt 00:00:05]} 6. d4 {[%clk 00:26:13]} {[%emt
00:00:36]} f6 {[%clk 00:25:52]} {[%emt 00:04:05]} 7. Ng4 {[%clk 00:21:17]}
{[%emt 00:05:04]} Qd6 {[%clk 00:23:59]} {[%emt 00:02:05]} 8. Na3 {[%clk
00:20:04]} {[%emt 00:01:22]} h5 {[%clk 00:22:49]} {[%emt 00:01:21]} 9. Ne3
{[%clk 00:19:46]} {[%emt 00:00:26]} a6 {[%clk 00:21:55]} {[%emt 00:01:06]} 10.
Be2 {[%clk 00:17:39]} {[%emt 00:02:15]} g6 {[%clk 00:21:49]} {[%emt 00:00:17]}
11. d5 {[%clk 00:17:22]} {[%emt 00:00:26]} Ne5 {[%clk 00:21:33]} {[%emt
00:00:28]} 12. Qa4+ {[%clk 00:16:24]} {[%emt 00:01:07]} Kf7 {[%clk 00:20:05]}
{[%emt 00:01:40]} 13. Qxe4 {[%clk 00:14:30]} {[%emt 00:02:02]} f5 {[%clk
00:19:55]} {[%emt 00:00:20]} 14. Qd4 {[%clk 00:12:32]} {[%emt 00:02:07]} Bg7
{[%clk 00:19:42]} {[%emt 00:00:25]} 15. Nac4 {[%clk 00:10:24]} {[%emt
00:02:17]} Nxc4 {[%clk 00:19:39]} {[%emt 00:00:14]} 16. Nxc4 {[%clk 00:08:16]}
{[%emt 00:02:19]} Qxd5 {[%clk 00:19:25]} {[%emt 00:00:23]} 17. Qf4 {[%clk
00:06:03]} {[%emt 00:02:20]} Be6 {[%clk 00:10:20]} {[%emt 00:09:18]} 18. O-O
{[%clk 00:04:18]} {[%emt 00:01:54]} Rhd8 {[%clk 00:09:48]} {[%emt 00:00:42]} 19.
Be3 {[%clk 00:04:14]} {[%emt 00:00:14]} Rac8 {[%clk 00:08:06]} {[%emt
00:01:53]} 20. Rad1 {[%clk 00:04:20]} {[%emt 00:00:03]} Qe4 {[%clk 00:08:15]}
{[%emt 00:00:03]} 21. Rxd8 {[%clk 00:03:42]} {[%emt 00:00:46]} Rxd8 {[%clk
00:08:17]} {[%emt 00:00:08]} 22. Qxc7 {[%clk 00:03:16]} {[%emt 00:00:37]} Qd5
{[%clk 00:07:04]} {[%emt 00:01:23]} 23. Bf3 {[%clk 00:03:06]} {[%emt 00:00:20]}
Qd3 {[%clk 00:05:05]} {[%emt 00:02:08]} 24. Ne5+ {[%clk 00:02:18]} {[%emt
00:00:58]} Bxe5 {[%clk 00:05:14]} {[%emt 00:00:02]} 25. Qxe5 {[%clk 00:02:26]}
{[%emt 00:00:02]} Rd7 {[%clk 00:03:41]} {[%emt 00:01:43]} 26. Bd4 {[%clk
00:02:28]} {[%emt 00:00:07]} Ng8 {[%clk 00:01:43]} {[%emt 00:02:09]} 27. Re1
{[%clk 00:02:20]} {[%emt 00:00:16]} Re7 {[%clk 00:01:52]} {[%emt 00:00:03]} 28.
h4 {[%clk 00:01:49]} {[%emt 00:00:42]} Ke8 {[%clk 00:01:38]} {[%emt 00:00:23]}
29. Bxb7 {[%clk 00:01:47]} {[%emt 00:00:12]} Qd2 {[%clk 00:01:18]} {[%emt
00:00:31]} 30. Bc6+ {[%clk 00:01:48]} {[%emt 00:00:07]} Kf8 {[%clk 00:01:07]}
{[%emt 00:00:22]} 31. Bc5 {[%clk 00:01:38]} {[%emt 00:00:20]} 1-0